[Event "Early-Titled-Tuesday-Blitz-September-05-2023"]
[Site "Chess.com"]
[Date "2023.09.05"]
[Round "5"]
[White "baki83"]
[Black "banane_verte"]
[Result "1/2-1/2"]
[WhiteElo "2824"]
[BlackElo "2593"]
[TimeControl "180+1"]
[EndTime "8:55:47 PDT"]
[Termination "Game drawn by agreement"]

1. e4 {[%clk 0:03:00.9]} 1... e6 {[%clk 0:02:59.8]} 2. d4 {[%clk 0:02:59.7]}
2... d5 {[%clk 0:02:59.9]} 3. Nc3 {[%clk 0:02:59.5]} 3... Nf6 {[%clk 0:02:59.7]}
4. e5 {[%clk 0:02:59.3]} 4... Nfd7 {[%clk 0:02:59.6]} 5. f4 {[%clk 0:02:59]}
5... c5 {[%clk 0:02:59.6]} 6. Nf3 {[%clk 0:02:59.4]} 6... Nc6 {[%clk 0:02:59.9]}
7. Be3 {[%clk 0:02:59.3]} 7... Be7 {[%clk 0:03:00.2]} 8. Bd3 {[%clk 0:02:57.2]}
8... O-O {[%clk 0:02:37.2]} 9. O-O {[%clk 0:02:50.4]} 9... b6 {[%clk 0:02:18.4]}
10. Kh1 {[%clk 0:02:29.2]} 10... f5 {[%clk 0:02:02.7]} 11. exf6 {[%clk
0:02:20.4]} 11... Nxf6 {[%clk 0:02:02.8]} 12. Qe1 {[%clk 0:02:14.2]} 12... Ng4
{[%clk 0:01:53.2]} 13. Bg1 {[%clk 0:02:11.9]} 13... Rxf4 {[%clk 0:01:33.5]} 14.
h3 {[%clk 0:01:39.4]} 14... Nh6 {[%clk 0:01:07.8]} 15. Bb5 {[%clk 0:01:30.8]}
15... Nxd4 {[%clk 0:00:53.4]} 16. Nxd4 {[%clk 0:01:29.9]} 16... Rxf1 {[%clk
0:00:53.7]} 17. Qxf1 {[%clk 0:01:29.5]} 17... cxd4 {[%clk 0:00:53.2]} 18. Ne2
{[%clk 0:01:23.7]} 18... Nf5 {[%clk 0:00:50.2]} 19. Bc6 {[%clk 0:01:16.5]} 19...
Rb8 {[%clk 0:00:48.2]} 20. Bb5 {[%clk 0:01:00.3]} 20... Bd6 {[%clk 0:00:39.6]}
21. Bd3 {[%clk 0:00:58.8]} 21... Ne3 {[%clk 0:00:36.7]} 22. Qf3 {[%clk
0:00:56.9]} 22... Qg5 {[%clk 0:00:33.2]} 23. Nxd4 {[%clk 0:00:50]} 23... Nc4
{[%clk 0:00:19.1]} 24. Rf1 {[%clk 0:00:45.1]} 24... Ne5 {[%clk 0:00:15.4]} 25.
Qf2 {[%clk 0:00:40.6]} 25... Bd7 {[%clk 0:00:14.8]} 26. Qe2 {[%clk 0:00:27.2]}
26... Nxd3 {[%clk 0:00:12.1]} 27. cxd3 {[%clk 0:00:26]} 27... Qe5 {[%clk
0:00:09.8]} 28. Qf2 {[%clk 0:00:19.2]} 28... Rf8 {[%clk 0:00:09.8]} 29. Nf3
{[%clk 0:00:18.5]} 29... Qg3 {[%clk 0:00:08.6]} 30. Qxg3 {[%clk 0:00:18.2]}
30... Bxg3 {[%clk 0:00:09.5]} 31. Bh2 {[%clk 0:00:18.5]} 31... Bxh2 {[%clk
0:00:09.5]} 32. Kxh2 {[%clk 0:00:19.1]} 32... e5 {[%clk 0:00:09.1]} 33. Re1
{[%clk 0:00:19.6]} 33... e4 {[%clk 0:00:06.2]} 34. dxe4 {[%clk 0:00:19.9]} 34...
dxe4 {[%clk 0:00:07.1]} 35. Ne5 {[%clk 0:00:20.2]} 35... Bf5 {[%clk 0:00:05.5]}
36. g4 {[%clk 0:00:19.9]} 36... Bg6 {[%clk 0:00:04.4]} 37. Kg3 {[%clk
0:00:18.6]} 37... Rc8 {[%clk 0:00:02.2]} 38. Nxg6 {[%clk 0:00:17.4]} 38... hxg6
{[%clk 0:00:03.1]} 39. Rxe4 {[%clk 0:00:17.5]} 39... Rc2 {[%clk 0:00:03.9]} 40.
Rb4 {[%clk 0:00:17.7]} 40... Kh7 {[%clk 0:00:03.7]} 41. Kh4 {[%clk 0:00:17.3]}
41... Kh6 {[%clk 0:00:03.4]} 42. Kg3 {[%clk 0:00:16.1]} 42... g5 {[%clk
0:00:03.5]} 43. a4 {[%clk 0:00:15.7]} 43... Kg6 {[%clk 0:00:03.8]} 44. Rb5
{[%clk 0:00:16.1]} 44... Kh6 {[%clk 0:00:03.5]} 45. Kf3 {[%clk 0:00:16.2]} 45...
Rh2 {[%clk 0:00:03.1]} 46. Kg3 {[%clk 0:00:16.8]} 46... Rc2 {[%clk 0:00:03.8]}
47. Rb4 {[%clk 0:00:15.6]} 47... Rd2 {[%clk 0:00:03.9]} 48. Rb3 {[%clk
0:00:15.1]} 48... Rc2 {[%clk 0:00:04.2]} 49. Rb5 {[%clk 0:00:15.3]} 49... Rd2
{[%clk 0:00:04.4]} 50. Kf3 {[%clk 0:00:15.6]} 50... Rc2 {[%clk 0:00:03.9]} 51.
Ke4 {[%clk 0:00:12.3]} 51... Rh2 {[%clk 0:00:03.1]} 52. a5 {[%clk 0:00:12.1]}
52... bxa5 {[%clk 0:00:03.3]} 53. Rb8 {[%clk 0:00:11.8]} 53... Kh7 {[%clk
0:00:02.2]} 54. Kf5 {[%clk 0:00:12.2]} 54... Rxh3 {[%clk 0:00:02.4]} 55. Kxg5
{[%clk 0:00:12.8]} 55... Rh2 {[%clk 0:00:02.6]} 56. Rb5 {[%clk 0:00:12.3]} 56...
Rc2 {[%clk 0:00:02.7]} 57. Kh5 {[%clk 0:00:10.6]} 57... a4 {[%clk 0:00:02.7]}
58. g5 {[%clk 0:00:10.4]} 58... Rh2+ {[%clk 0:00:03]} 59. Kg4 {[%clk 0:00:10.9]}
59... Re2 {[%clk 0:00:01.9]} 60. Ra5 {[%clk 0:00:09.8]} 60... Rxb2 {[%clk
0:00:01.8]} 61. Rxa4 {[%clk 0:00:09.9]} 61... Rg2+ {[%clk 0:00:02.2]} 62. Kh5
{[%clk 0:00:07.7]} 62... Rh2+ {[%clk 0:00:02.5]} 63. Kg4 {[%clk 0:00:08.3]}
63... Rh1 {[%clk 0:00:02]} 64. Rxa7 {[%clk 0:00:07.4]} 64... Rg1+ {[%clk
0:00:02.2]} 65. Kf4 {[%clk 0:00:08]} 65... Rf1+ {[%clk 0:00:02.6]} 66. Ke3
{[%clk 0:00:08.4]} 66... Rg1 {[%clk 0:00:03.5]} 67. Ra5 {[%clk 0:00:08.4]} 67...
Kg6 {[%clk 0:00:03.1]} 68. Kf4 {[%clk 0:00:08.9]} 68... Rf1+ {[%clk 0:00:03.7]}
69. Kg3 {[%clk 0:00:09.2]} 69... Rg1+ {[%clk 0:00:04.1]} 70. Kh4 {[%clk
0:00:09.8]} 70... Rh1+ {[%clk 0:00:04.8]} 71. Kg4 {[%clk 0:00:10.4]} 71... Rg1+
{[%clk 0:00:05.4]} 72. Kf4 {[%clk 0:00:11]} 72... Rf1+ {[%clk 0:00:06.1]} 73.
Kg3 {[%clk 0:00:11.4]} 73... Rg1+ {[%clk 0:00:06.5]} 74. Kh4 {[%clk 0:00:12]}
74... Rh1+ {[%clk 0:00:07.2]} 1/2-1/2

[Event "Early-Titled-Tuesday-Blitz-September-05-2023"]
[Site "Chess.com"]
[Date "2023.09.05"]
[Round "5"]
[White "Gauravthegm"]
[Black "onnoelgersma"]
[Result "0-1"]
[WhiteElo "2419"]
[BlackElo "2583"]
[TimeControl "180+1"]
[EndTime "8:55:50 PDT"]
[Termination "onnoelgersma won by resignation"]

1. e4 {[%clk 0:03:00.9]} 1... g6 {[%clk 0:02:56.8]} 2. d4 {[%clk 0:02:59.8]}
2... Bg7 {[%clk 0:02:57.1]} 3. Nf3 {[%clk 0:02:59.9]} 3... a6 {[%clk 0:02:57.3]}
4. Be2 {[%clk 0:02:59.2]} 4... d6 {[%clk 0:02:56.4]} 5. h3 {[%clk 0:02:59.1]}
5... Nf6 {[%clk 0:02:53.1]} 6. Nbd2 {[%clk 0:02:52.4]} 6... O-O {[%clk
0:02:51.4]} 7. O-O {[%clk 0:02:52.6]} 7... Nbd7 {[%clk 0:02:35.9]} 8. c3 {[%clk
0:02:51.8]} 8... b6 {[%clk 0:02:35]} 9. Re1 {[%clk 0:02:50.2]} 9... Bb7 {[%clk
0:02:35.5]} 10. Bf1 {[%clk 0:02:49.6]} 10... e6 {[%clk 0:02:35.5]} 11. Qc2
{[%clk 0:02:42.9]} 11... Qe7 {[%clk 0:02:34]} 12. e5 {[%clk 0:02:34.7]} 12...
Nd5 {[%clk 0:02:32.8]} 13. exd6 {[%clk 0:02:31.4]} 13... cxd6 {[%clk 0:02:33.7]}
14. Ne4 {[%clk 0:02:31.2]} 14... h6 {[%clk 0:02:27.8]} 15. Bd2 {[%clk
0:02:21.2]} 15... N5f6 {[%clk 0:02:21.8]} 16. Nxf6+ {[%clk 0:02:20.1]} 16...
Nxf6 {[%clk 0:02:22.7]} 17. Nh2 {[%clk 0:02:09.6]} 17... Kh7 {[%clk 0:02:15.5]}
18. Bd3 {[%clk 0:02:07.9]} 18... Rac8 {[%clk 0:02:12.2]} 19. Qb3 {[%clk
0:02:06.6]} 19... Qc7 {[%clk 0:02:00.9]} 20. Nf1 {[%clk 0:02:01]} 20... Qc6
{[%clk 0:01:56]} 21. f3 {[%clk 0:01:46]} 21... Qc7 {[%clk 0:01:54.5]} 22. Rad1
{[%clk 0:01:39.8]} 22... Kg8 {[%clk 0:01:49.7]} 23. Ng3 {[%clk 0:01:35.7]} 23...
b5 {[%clk 0:01:48.1]} 24. Ne4 {[%clk 0:01:32]} 24... Nd5 {[%clk 0:01:40]} 25. a3
{[%clk 0:01:21.9]} 25... Bc6 {[%clk 0:01:35.6]} 26. Qa2 {[%clk 0:01:21.1]} 26...
a5 {[%clk 0:01:32.5]} 27. Kh1 {[%clk 0:01:11.6]} 27... a4 {[%clk 0:01:32.1]} 28.
Qb1 {[%clk 0:01:09.4]} 28... Nb6 {[%clk 0:01:29.6]} 29. Nf2 {[%clk 0:01:08.8]}
29... Nc4 {[%clk 0:01:28.5]} 30. Bc1 {[%clk 0:01:06.9]} 30... Bd5 {[%clk
0:01:24]} 31. Ng4 {[%clk 0:01:06.5]} 31... Kh7 {[%clk 0:01:22.7]} 32. Bf4 {[%clk
0:00:59.6]} 32... Qe7 {[%clk 0:01:22.5]} 33. Qc1 {[%clk 0:00:57.1]} 33... h5
{[%clk 0:01:16.3]} 34. Nf2 {[%clk 0:00:50.9]} 34... Qh4 {[%clk 0:01:11.6]} 35.
Re2 {[%clk 0:00:42]} 35... Qe7 {[%clk 0:00:59.5]} 36. Bg5 {[%clk 0:00:41]} 36...
f6 {[%clk 0:00:59.5]} 37. Bf4 {[%clk 0:00:40.8]} 37... f5 {[%clk 0:00:54.9]} 38.
Kh2 {[%clk 0:00:35.8]} 38... Bf6 {[%clk 0:00:51.3]} 39. Bh6 {[%clk 0:00:35.6]}
39... Bg7 {[%clk 0:00:50.9]} 40. Bxg7 {[%clk 0:00:35.5]} 40... Kxg7 {[%clk
0:00:48.2]} 41. Qf4 {[%clk 0:00:32.7]} 41... h4 {[%clk 0:00:44.2]} 42. Bxc4
{[%clk 0:00:31.8]} 42... Bxc4 {[%clk 0:00:42.6]} 43. Ree1 {[%clk 0:00:25.9]}
43... g5 {[%clk 0:00:42.1]} 44. Qd2 {[%clk 0:00:25]} 44... Qf6 {[%clk
0:00:40.1]} 45. Qe3 {[%clk 0:00:21.7]} 45... Rce8 {[%clk 0:00:40.1]} 46. Nd3
{[%clk 0:00:20.4]} 46... Rf7 {[%clk 0:00:37.9]} 47. Nb4 {[%clk 0:00:20.3]} 47...
Kg6 {[%clk 0:00:25.9]} 48. Rd2 {[%clk 0:00:20.4]} 48... e5 {[%clk 0:00:25.6]}
49. dxe5 {[%clk 0:00:19.7]} 49... Rxe5 {[%clk 0:00:26.5]} 50. Qf2 {[%clk
0:00:19.3]} 50... g4 {[%clk 0:00:25.9]} 51. fxg4 {[%clk 0:00:18.9]} 51... fxg4
{[%clk 0:00:26.1]} 52. Qxf6+ {[%clk 0:00:19]} 52... Rxf6 {[%clk 0:00:27]} 53.
Rxe5 {[%clk 0:00:19.1]} 53... dxe5 {[%clk 0:00:27.9]} 54. hxg4 {[%clk
0:00:19.4]} 54... Kg5 {[%clk 0:00:27.6]} 55. Kh3 {[%clk 0:00:17.6]} 55... Be6
{[%clk 0:00:26.5]} 56. Nd3 {[%clk 0:00:15.8]} 56... Bxg4+ {[%clk 0:00:26.6]} 57.
Kh2 {[%clk 0:00:16.4]} 57... e4 {[%clk 0:00:25.7]} 58. Nc5 {[%clk 0:00:16.1]}
58... e3 {[%clk 0:00:25.2]} 59. Rd5+ {[%clk 0:00:16]} 59... Rf5 {[%clk
0:00:25.6]} 60. Rd8 {[%clk 0:00:14.8]} 60... e2 {[%clk 0:00:24.3]} 61. Nd3
{[%clk 0:00:15.1]} 61... Rf1 {[%clk 0:00:21.3]} 62. Re8 {[%clk 0:00:12.6]} 62...
Rd1 {[%clk 0:00:19]} 63. Re5+ {[%clk 0:00:03.5]} 63... Kf6 {[%clk 0:00:17.8]}
64. Re4 {[%clk 0:00:01.6]} 64... Rxd3 {[%clk 0:00:17.4]} 65. Rf4+ {[%clk
0:00:02.3]} 65... Kg5 {[%clk 0:00:17.3]} 66. Re4 {[%clk 0:00:02.6]} 66... Rd1
{[%clk 0:00:16.8]} 0-1

[Event "Early-Titled-Tuesday-Blitz-September-05-2023"]
[Site "Chess.com"]
[Date "2023.09.05"]
[Round "5"]
[White "lamomiajunior"]
[Black "LeoLV10"]
[Result "0-1"]
[WhiteElo "2685"]
[BlackElo "2501"]
[TimeControl "180+1"]
[EndTime "8:55:51 PDT"]
[Termination "LeoLV10 won by checkmate"]

1. d4 {[%clk 0:03:00.9]} 1... Nf6 {[%clk 0:02:55.7]} 2. Nc3 {[%clk 0:03:01.5]}
2... d5 {[%clk 0:02:52.1]} 3. Bf4 {[%clk 0:03:02]} 3... c6 {[%clk 0:02:51.4]} 4.
e3 {[%clk 0:03:02.2]} 4... g6 {[%clk 0:02:51.8]} 5. Be2 {[%clk 0:03:02.4]} 5...
Bg7 {[%clk 0:02:52.5]} 6. h4 {[%clk 0:03:03.1]} 6... O-O {[%clk 0:02:53.2]} 7.
h5 {[%clk 0:03:03.1]} 7... Nbd7 {[%clk 0:02:52.4]} 8. hxg6 {[%clk 0:03:01]} 8...
fxg6 {[%clk 0:02:52.3]} 9. Nf3 {[%clk 0:02:51.5]} 9... Nh5 {[%clk 0:02:43]} 10.
Bh2 {[%clk 0:02:48.8]} 10... Re8 {[%clk 0:02:22.5]} 11. Qd2 {[%clk 0:02:45.2]}
11... Ndf6 {[%clk 0:02:18.7]} 12. Ne5 {[%clk 0:02:44]} 12... Bf8 {[%clk
0:02:09]} 13. g4 {[%clk 0:02:39.4]} 13... Ng7 {[%clk 0:02:07.9]} 14. O-O-O
{[%clk 0:02:38.6]} 14... Ne4 {[%clk 0:01:53.8]} 15. Nxe4 {[%clk 0:02:37.8]}
15... dxe4 {[%clk 0:01:54.7]} 16. Bg3 {[%clk 0:02:34.1]} 16... Be6 {[%clk
0:01:52]} 17. Rh2 {[%clk 0:02:25.5]} 17... Qb6 {[%clk 0:01:31.3]} 18. Rdh1
{[%clk 0:02:23]} 18... c5 {[%clk 0:01:18.9]} 19. Rxh7 {[%clk 0:02:19.7]} 19...
Nh5 {[%clk 0:01:19.1]} 20. gxh5 {[%clk 0:02:08]} 20... Kxh7 {[%clk 0:01:19]} 21.
hxg6+ {[%clk 0:02:08.9]} 21... Kg8 {[%clk 0:01:19.5]} 22. d5 {[%clk 0:02:08]}
22... Bf5 {[%clk 0:01:14.7]} 23. Bc4 {[%clk 0:02:07]} 23... Bg7 {[%clk
0:01:10.1]} 24. Qe2 {[%clk 0:01:58.4]} 24... e6 {[%clk 0:00:59.9]} 25. Qh5
{[%clk 0:01:50.6]} 25... Rad8 {[%clk 0:00:42.4]} 26. Qh7+ {[%clk 0:01:18.2]}
26... Kf8 {[%clk 0:00:40.9]} 27. Bf4 {[%clk 0:01:11]} 27... exd5 {[%clk
0:00:31.6]} 28. Bh6 {[%clk 0:01:08.5]} 28... Qf6 {[%clk 0:00:21.2]} 29. Nf7
{[%clk 0:00:04]} 29... Bxg6 {[%clk 0:00:09.8]} 30. Bxg7+ {[%clk 0:00:04]} 30...
Qxg7 {[%clk 0:00:06]} 31. Qh4 {[%clk 0:00:04.2]} 31... Kxf7 {[%clk 0:00:03.7]}
32. Bb3 {[%clk 0:00:04.2]} 32... Qf6 {[%clk 0:00:03.4]} 33. Qg3 {[%clk
0:00:04.1]} 33... Qe5 {[%clk 0:00:02.9]} 34. Qg1 {[%clk 0:00:04.1]} 34... Rh8
{[%clk 0:00:02.1]} 35. a4 {[%clk 0:00:03.4]} 35... Rxh1 {[%clk 0:00:01.7]} 36.
Qxh1 {[%clk 0:00:04.3]} 36... Qf6 {[%clk 0:00:01.8]} 37. Qd1 {[%clk 0:00:04]}
37... Rd6 {[%clk 0:00:02.7]} 38. Bxd5+ {[%clk 0:00:03.7]} 38... Kg7 {[%clk
0:00:03.6]} 39. c4 {[%clk 0:00:04]} 39... Qd8 {[%clk 0:00:04.4]} 40. b3 {[%clk
0:00:04.5]} 40... Bf7 {[%clk 0:00:04.9]} 41. Qg4+ {[%clk 0:00:04.9]} 41... Kf8
{[%clk 0:00:05]} 42. Qf4 {[%clk 0:00:05.3]} 42... Rxd5 {[%clk 0:00:04.6]} 43.
cxd5 {[%clk 0:00:05.4]} 43... Qxd5 {[%clk 0:00:05.5]} 44. Qb8+ {[%clk
0:00:05.9]} 44... Kg7 {[%clk 0:00:06.1]} 45. Qg3+ {[%clk 0:00:06]} 45... Kf6
{[%clk 0:00:06.7]} 46. Qf4+ {[%clk 0:00:06.2]} 46... Qf5 {[%clk 0:00:07.4]} 47.
Qd6+ {[%clk 0:00:06.9]} 47... Kg5 {[%clk 0:00:07.9]} 48. Qg3+ {[%clk 0:00:07.2]}
48... Kf6 {[%clk 0:00:08]} 49. Qd6+ {[%clk 0:00:07.5]} 49... Be6 {[%clk
0:00:08.3]} 50. Qf8+ {[%clk 0:00:07.3]} 50... Kg6 {[%clk 0:00:08.8]} 51. Qe8+
{[%clk 0:00:07.1]} 51... Qf7 {[%clk 0:00:09.1]} 52. Qd8 {[%clk 0:00:06.6]} 52...
Qd7 {[%clk 0:00:09]} 53. Qh4 {[%clk 0:00:03.7]} 53... Bxb3 {[%clk 0:00:09.1]}
54. Qxe4+ {[%clk 0:00:03.8]} 54... Kg7 {[%clk 0:00:08.8]} 55. Qe5+ {[%clk
0:00:03.4]} 55... Kf8 {[%clk 0:00:08]} 56. Qf4+ {[%clk 0:00:03.8]} 56... Bf7
{[%clk 0:00:07.8]} 57. Qb8+ {[%clk 0:00:03.9]} 57... Ke7 {[%clk 0:00:07.8]} 58.
Qxa7 {[%clk 0:00:04.8]} 58... Qc6 {[%clk 0:00:07.2]} 59. Qa5 {[%clk 0:00:04.9]}
59... b6 {[%clk 0:00:06.8]} 60. Qc3 {[%clk 0:00:05.5]} 60... Be6 {[%clk
0:00:07]} 61. Qg7+ {[%clk 0:00:05.6]} 61... Kd6 {[%clk 0:00:07.9]} 62. Qf8+
{[%clk 0:00:05.9]} 62... Kc7 {[%clk 0:00:08.1]} 63. Qe7+ {[%clk 0:00:06.1]}
63... Kb8 {[%clk 0:00:08.6]} 64. f4 {[%clk 0:00:05.3]} 64... Bb3 {[%clk
0:00:04.9]} 65. f5 {[%clk 0:00:04.4]} 65... Bxa4 {[%clk 0:00:03.6]} 66. f6
{[%clk 0:00:04.5]} 66... Qh1+ {[%clk 0:00:03.5]} 67. Kb2 {[%clk 0:00:04.6]}
67... Qg2+ {[%clk 0:00:04.2]} 68. Ka3 {[%clk 0:00:05.3]} 68... Qc2 {[%clk
0:00:04.5]} 69. Qe6 {[%clk 0:00:02.7]} 69... Qc3+ {[%clk 0:00:03.6]} 70. Kxa4
{[%clk 0:00:03.3]} 70... Qb4# {[%clk 0:00:03.9]} 0-1

[Event "Early-Titled-Tuesday-Blitz-September-05-2023"]
[Site "Chess.com"]
[Date "2023.09.05"]
[Round "5"]
[White "wonderfultime"]
[Black "Chopper1905"]
[Result "1-0"]
[WhiteElo "3007"]
[BlackElo "2883"]
[TimeControl "180+1"]
[EndTime "8:55:55 PDT"]
[Termination "wonderfultime won by resignation"]

1. d4 {[%clk 0:02:56.4]} 1... d5 {[%clk 0:03:00.2]} 2. Nf3 {[%clk 0:02:55.4]}
2... Nf6 {[%clk 0:02:59.6]} 3. Bf4 {[%clk 0:02:56]} 3... c5 {[%clk 0:02:59.6]}
4. c3 {[%clk 0:02:56.1]} 4... e6 {[%clk 0:02:55.5]} 5. e3 {[%clk 0:02:56.4]}
5... Bd6 {[%clk 0:02:53.9]} 6. Nbd2 {[%clk 0:02:56.7]} 6... O-O {[%clk
0:02:45.4]} 7. Bd3 {[%clk 0:02:56.6]} 7... Bxf4 {[%clk 0:02:35.5]} 8. exf4
{[%clk 0:02:57.5]} 8... cxd4 {[%clk 0:02:30.1]} 9. cxd4 {[%clk 0:02:56.6]} 9...
Qb6 {[%clk 0:02:26.5]} 10. Qb3 {[%clk 0:02:46.8]} 10... Qd6 {[%clk 0:01:48]} 11.
g3 {[%clk 0:02:43.8]} 11... b6 {[%clk 0:01:46.4]} 12. O-O {[%clk 0:02:33]} 12...
Nc6 {[%clk 0:01:39.8]} 13. Rac1 {[%clk 0:02:30.3]} 13... Bb7 {[%clk 0:01:39.6]}
14. Rc3 {[%clk 0:02:23.9]} 14... Rfc8 {[%clk 0:01:34.5]} 15. Rfc1 {[%clk
0:02:22.8]} 15... Na5 {[%clk 0:01:09.5]} 16. Qa4 {[%clk 0:02:15.7]} 16... Rxc3
{[%clk 0:00:59.4]} 17. Rxc3 {[%clk 0:02:16.6]} 17... Rc8 {[%clk 0:00:27]} 18.
Rxc8+ {[%clk 0:02:15.4]} 18... Bxc8 {[%clk 0:00:27.9]} 19. Ne5 {[%clk
0:02:16.2]} 19... Bd7 {[%clk 0:00:20.1]} 20. Bb5 {[%clk 0:02:02.5]} 20... Bxb5
{[%clk 0:00:20.3]} 21. Qxb5 {[%clk 0:02:03.4]} 21... Qc7 {[%clk 0:00:21]} 22.
Ndf3 {[%clk 0:01:30.3]} 22... h6 {[%clk 0:00:19.7]} 23. b3 {[%clk 0:01:21.7]}
23... Nb7 {[%clk 0:00:20]} 24. Qc6 {[%clk 0:01:15.4]} 24... Qxc6 {[%clk
0:00:20.4]} 25. Nxc6 {[%clk 0:01:16.3]} 25... a5 {[%clk 0:00:18.4]} 26. Nfe5
{[%clk 0:01:14.5]} 26... Kf8 {[%clk 0:00:17.4]} 27. f3 {[%clk 0:01:13.9]} 27...
Ke8 {[%clk 0:00:17.7]} 28. Kf2 {[%clk 0:01:12.3]} 28... Nd6 {[%clk 0:00:15.9]}
29. Ke2 {[%clk 0:01:09.6]} 29... Ng8 {[%clk 0:00:12.9]} 30. a4 {[%clk
0:00:13.4]} 30... f6 {[%clk 0:00:13]} 31. Ng4 {[%clk 0:00:12]} 31... Kd7 {[%clk
0:00:12.6]} 32. Na7 {[%clk 0:00:12.7]} 32... Ne7 {[%clk 0:00:09.7]} 33. Kd3
{[%clk 0:00:12.1]} 33... Nef5 {[%clk 0:00:07.8]} 34. Nf2 {[%clk 0:00:10.2]}
34... Kc7 {[%clk 0:00:08.4]} 35. Nd1 {[%clk 0:00:10.4]} 35... Kb7 {[%clk
0:00:08.5]} 36. Nb5 {[%clk 0:00:10.6]} 36... Nxb5 {[%clk 0:00:05.7]} 37. axb5
{[%clk 0:00:11.5]} 37... Kc7 {[%clk 0:00:04.3]} 38. Nc3 {[%clk 0:00:11.7]} 38...
Nd6 {[%clk 0:00:04.7]} 39. g4 {[%clk 0:00:10.1]} 39... g5 {[%clk 0:00:04.5]} 40.
Ke3 {[%clk 0:00:10.1]} 40... Nc8 {[%clk 0:00:03.2]} 41. f5 {[%clk 0:00:09.9]}
41... exf5 {[%clk 0:00:03.4]} 42. Nxd5+ {[%clk 0:00:10.2]} 42... Kd6 {[%clk
0:00:03.4]} 43. Nxf6 {[%clk 0:00:10.9]} 43... Ke6 {[%clk 0:00:02]} 44. Ng8
{[%clk 0:00:10]} 44... f4+ {[%clk 0:00:02.2]} 45. Kd3 {[%clk 0:00:10]} 45... Nd6
{[%clk 0:00:02.6]} 46. Nxh6 {[%clk 0:00:10.5]} 46... Nxb5 {[%clk 0:00:03]} 47.
Nf5 {[%clk 0:00:11.1]} 47... Nc7 {[%clk 0:00:03]} 48. h4 {[%clk 0:00:11.1]}
48... gxh4 {[%clk 0:00:01.8]} 49. Nxh4 {[%clk 0:00:11.9]} 49... b5 {[%clk
0:00:02.3]} 50. Ng6 {[%clk 0:00:08.1]} 50... Nd5 {[%clk 0:00:02.3]} 51. Ne5
{[%clk 0:00:08.8]} 51... a4 {[%clk 0:00:02.2]} 52. bxa4 {[%clk 0:00:09.7]} 52...
bxa4 {[%clk 0:00:03.1]} 53. Nc4 {[%clk 0:00:10.3]} 53... Kd7 {[%clk 0:00:01.7]}
54. Ke4 {[%clk 0:00:09.8]} 54... Kc6 {[%clk 0:00:02.3]} 55. g5 {[%clk
0:00:09.8]} 55... Nc3+ {[%clk 0:00:02]} 56. Ke5 {[%clk 0:00:08.9]} 56... Kb5
{[%clk 0:00:02.2]} 57. g6 {[%clk 0:00:08]} 57... Kxc4 {[%clk 0:00:01.7]} 58. g7
{[%clk 0:00:08.6]} 58... a3 {[%clk 0:00:02.2]} 59. g8=Q+ {[%clk 0:00:09.3]}
59... Kb4 {[%clk 0:00:02.3]} 60. Qg1 {[%clk 0:00:07.2]} 60... a2 {[%clk
0:00:02.4]} 61. Qa1 {[%clk 0:00:07.8]} 61... Kb3 {[%clk 0:00:02.8]} 62. d5
{[%clk 0:00:08.4]} 62... Nb5 {[%clk 0:00:02.7]} 63. d6 {[%clk 0:00:08.4]} 63...
Na3 {[%clk 0:00:02.2]} 64. d7 {[%clk 0:00:08.7]} 64... Nc2 {[%clk 0:00:02.5]}
65. Qxa2+ {[%clk 0:00:09.1]} 65... Kxa2 {[%clk 0:00:03.4]} 66. d8=Q {[%clk
0:00:09.9]} 66... Nb4 {[%clk 0:00:04.3]} 67. Qd2+ {[%clk 0:00:09.5]} 67... Kb3
{[%clk 0:00:04.5]} 68. Kxf4 {[%clk 0:00:10.1]} 68... Kc4 {[%clk 0:00:04.1]} 69.
Ke5 {[%clk 0:00:10.2]} 69... Nd3+ {[%clk 0:00:04.3]} 70. Qxd3+ {[%clk
0:00:10.3]} 70... Kxd3 {[%clk 0:00:04.6]} 71. f4 {[%clk 0:00:11.2]} 1-0